{"text_format":"1","workbook":"xlsx","n_sheets":2,"sheets":["Rosa a 15 con membro designato","Commissione"],"not_rendered":{"charts":0,"images":1,"macros":1,"external_links":0,"defined_names":1,"comments":0,"pivot_tables":0},"unopened":[],"bounds":{"document_bytes":16777216,"sheet_cells":100000,"rows_first":2000,"rows_last":500,"rows_between":2000,"halvings":0,"cell_chars":16384,"cell_head_chars":4096},"cells_cut":0,"cells_raw":0,"read":"whole","date_system":"1900"}

{"sheet":"Rosa a 15 con membro designato","index":0,"n_rows":35,"n_cols":7,"rows_kept":35,"cut":false,"hidden":false,"merged":[[14,4,14,6],[0,0,0,2],[1,0,1,2],[3,0,3,1]]}
["Inserire intestazione verbale"]
["Prova di titolo di verbale di selezione II rivisto al meglio con membro interno per un totale di tre o cinque commissari come richiesto dalla normativa vigente"]
[]
["1. Indicare N° commissari richiesti (3 oppure 5)→",null,3,null,null,3]
["2. Inserire nome (Cognome Nome) e qualifica (PA o PO) del membro designato",null,null,null,null,5]
[]
["Qualifica","Nome membro designato","Ruolo"]
["PO","ROSSI","Membro designato"]
[]
["3. Inserire nome (Cognome Nome) e qualifica (PA o PO) dei commissari disponibili"]
["4. Premere F9 per sorteggiare la commissione"]
["5. Premere il bottone blu  STAMPA COMMISSIONE per generare PDF"]
[]
[]
["Num","Nome commissario disponibile","Qualifica",null,"DA NASCONDERE"]
[1,"AA","PO",null,{"$f":"RAND()","v":0.4496937418273631},{"$f":"INDEX(B$16:INDIRECT($B$35),RANK($E16,$E$16:INDIRECT($C$35)))","v":"II"},{"$f":"VLOOKUP(F16,Tabella24[],2,FALSE)","v":"PO"}]
[2,"BB","PO",null,{"$f":"RAND()","v":0.18851457536463212},{"$f":"INDEX(B$16:INDIRECT($B$35),RANK($E17,$E$16:INDIRECT($C$35)))","v":"MM"},{"$f":"VLOOKUP(F17,Tabella24[],2,FALSE)","v":"PO"}]
[3,"CC","PO",null,8.2913429631103153E-2,{"$f":"INDEX(B$16:INDIRECT($B$35),RANK($E18,$E$16:INDIRECT($C$35)))","v":"OO"},{"$f":"VLOOKUP(F18,Tabella24[],2,FALSE)","v":"PO"}]
[4,"DD","PA",null,8.1131782957792109E-2,{"$f":"INDEX(B$16:INDIRECT($B$35),RANK($E19,$E$16:INDIRECT($C$35)))","v":"PP"},{"$f":"VLOOKUP(F19,Tabella24[],2,FALSE)","v":"PO"}]
[5,"EE","PO",null,0.25418570379131067,{"$f":"INDEX(B$16:INDIRECT($B$35),RANK($E20,$E$16:INDIRECT($C$35)))","v":"LL"},{"$f":"VLOOKUP(F20,Tabella24[],2,FALSE)","v":"PO"}]
[6,"FF","PO",null,4.0420127857055732E-2,{"$f":"INDEX(B$16:INDIRECT($B$35),RANK($E21,$E$16:INDIRECT($C$35)))","v":"QQ"},{"$f":"VLOOKUP(F21,Tabella24[],2,FALSE)","v":"PA"}]
[7,"GG","PO",null,0.56906037931304487,{"$f":"INDEX(B$16:INDIRECT($B$35),RANK($E22,$E$16:INDIRECT($C$35)))","v":"EE"},{"$f":"VLOOKUP(F22,Tabella24[],2,FALSE)","v":"PO"}]
[8,"HH","PO",null,0.4953649656620589,{"$f":"INDEX(B$16:INDIRECT($B$35),RANK($E23,$E$16:INDIRECT($C$35)))","v":"FF"},{"$f":"VLOOKUP(F23,Tabella24[],2,FALSE)","v":"PO"}]
[9,"II","PO",null,0.4937634009377091,{"$f":"INDEX(B$16:INDIRECT($B$35),RANK($E24,$E$16:INDIRECT($C$35)))","v":"GG"},{"$f":"VLOOKUP(F24,Tabella24[],2,FALSE)","v":"PO"}]
[10,"LL","PO",null,0.60815769951825238,{"$f":"INDEX(B$16:INDIRECT($B$35),RANK($E25,$E$16:INDIRECT($C$35)))","v":"DD"},{"$f":"VLOOKUP(F25,Tabella24[],2,FALSE)","v":"PA"}]
[11,"MM","PO",null,0.83013785432479603,{"$f":"INDEX(B$16:INDIRECT($B$35),RANK($E26,$E$16:INDIRECT($C$35)))","v":"CC"},{"$f":"VLOOKUP(F26,Tabella24[],2,FALSE)","v":"PO"}]
[12,"NN","PO",null,0.46617806907819437,{"$f":"INDEX(B$16:INDIRECT($B$35),RANK($E27,$E$16:INDIRECT($C$35)))","v":"HH"},{"$f":"VLOOKUP(F27,Tabella24[],2,FALSE)","v":"PO"}]
[13,"OO","PO",null,0.12722943779860607,{"$f":"INDEX(B$16:INDIRECT($B$35),RANK($E28,$E$16:INDIRECT($C$35)))","v":"NN"},{"$f":"VLOOKUP(F28,Tabella24[],2,FALSE)","v":"PO"}]
[14,"PP","PO",null,0.93771097199374542,{"$f":"INDEX(B$16:INDIRECT($B$35),RANK($E29,$E$16:INDIRECT($C$35)))","v":"BB"},{"$f":"VLOOKUP(F29,Tabella24[],2,FALSE)","v":"PO"}]
[15,"QQ","PA",null,0.99814794869690737,{"$f":"INDEX(B$16:INDIRECT($B$35),RANK($E30,$E$16:INDIRECT($C$35)))","v":"AA"},{"$f":"VLOOKUP(F30,Tabella24[],2,FALSE)","v":"PO"}]
[]
[]
["RIGHE VUOTE",{"$f":"COUNTBLANK(Tabella24[Nome commissario disponibile])","v":0}]
["FINE DATI",{"$f":"30-B33","v":30}]
["LIMITI TABELLE",{"$f":"ADDRESS($B$34,2,1,TRUE)","v":"$B$30"},{"$f":"ADDRESS($B$34,5,1,TRUE)","v":"$E$30"}]

{"sheet":"Commissione","index":1,"n_rows":29,"n_cols":3,"rows_kept":29,"cut":false,"hidden":false,"merged":[[10,0,10,2],[6,0,8,2]]}
[]
[]
[]
[]
[]
[]
[{"$f":"'Rosa a 15 con membro designato'!A2:A2","v":"Prova di titolo di verbale di selezione II rivisto al meglio con membro interno per un totale di tre o cinque commissari come richiesto dalla normativa vigente"}]
[]
[]
[]
["COMMISSIONE SORTEGGIATA"]
[]
["Commissione","Qualifica","Ruolo"]
[{"$f":"Tabella2[Nome membro designato]","v":"ROSSI"},{"$f":"Tabella2[Qualifica]","v":"PO"},{"$f":"Tabella2[Ruolo]","v":"Membro designato"}]
[{"$f":"'Rosa a 15 con membro designato'!F16","v":"II"},{"$f":"'Rosa a 15 con membro designato'!G16","v":"PO"},"Commissario"]
[{"$f":"'Rosa a 15 con membro designato'!F17","v":"MM"},{"$f":"'Rosa a 15 con membro designato'!G17","v":"PO"},"Commissario"]
[{"$f":"_xlfn.IFNA('Rosa a 15 con membro designato'!F18,\"\")","v":"OO"},{"$f":"IF('Rosa a 15 con membro designato'!$C$4=5,'Rosa a 15 con membro designato'!G18,\"\")","v":""},{"$f":"IF('Rosa a 15 con membro designato'!$C$4=5,C16,\"\")","v":""}]
[{"$f":"_xlfn.IFNA('Rosa a 15 con membro designato'!F19,\"\")","v":"PP"},{"$f":"IF('Rosa a 15 con membro designato'!$C$4=5,'Rosa a 15 con membro designato'!G19,\"\")","v":""},{"$f":"IF('Rosa a 15 con membro designato'!$C$4=5,C17,\"\")","v":""}]
[{"$f":"_xlfn.IFNA('Rosa a 15 con membro designato'!F20,\"\")","v":"LL"}]
[{"$f":"_xlfn.IFNA('Rosa a 15 con membro designato'!F21,\"\")","v":"QQ"}]
[{"$f":"_xlfn.IFNA('Rosa a 15 con membro designato'!F22,\"\")","v":"EE"}]
[{"$f":"_xlfn.IFNA('Rosa a 15 con membro designato'!F23,\"\")","v":"FF"}]
[{"$f":"_xlfn.IFNA('Rosa a 15 con membro designato'!F24,\"\")","v":"GG"}]
[{"$f":"_xlfn.IFNA('Rosa a 15 con membro designato'!F25,\"\")","v":"DD"}]
[{"$f":"_xlfn.IFNA('Rosa a 15 con membro designato'!F26,\"\")","v":"CC"}]
[{"$f":"_xlfn.IFNA('Rosa a 15 con membro designato'!F27,\"\")","v":"HH"}]
[{"$f":"_xlfn.IFNA('Rosa a 15 con membro designato'!F28,\"\")","v":"NN"}]
[{"$f":"_xlfn.IFNA('Rosa a 15 con membro designato'!F29,\"\")","v":"BB"}]
[{"$f":"_xlfn.IFNA('Rosa a 15 con membro designato'!F30,\"\")","v":"AA"}]